[Event "69th RUS-ch Women Higher League 2019"]
[Site "Yaroslavl"]
[Date "2019.07.06"]
[Round "9.23"]
[White "Yakushina, Ekaterina"]
[Black "Mokshanova, Elizaveta"]
[Result "0-1"]
[ECO "E73"]
[WhiteElo "1783"]
[BlackElo "2020"]
[Annotator "NA"]
[PlyCount "66"]
[EventDate "2019.06.27"]
[EventType "swiss"]
[EventCountry "RUS"]
[SourceTitle "playchess.com"]
[Source "ChessBase"]
[SourceQuality "1"]
[TimeControl "40/5400+30:1800+30"]

1. d4 {[%emt 0:00:10]} Nf6 {[%emt 0:00:00]} 2. c4 {[%emt 0:00:32]} g6 {[%emt 0:00:00]} 3. Nc3 {[%emt 0:00:14]} Bg7 {[%emt 0:00:00]} 4. e4 {[%emt 0:00:48]} d6 {[%emt 0:00:00]} 5. Be2 {[%emt 0:00:10]} O-O {[%emt 0:00:00]} 6. Be3 {[%emt 0:00:07]} e5 {[%emt 0:01:35]} 7. d5 {[%emt 0:00:48]} a5 {[%emt 0:00:20]} 8. g4 {[%emt 0:00:17]} Na6 {[%emt 0:00:36]} 9. g5 {[%emt 0:00:39]} Ne8 {[%emt 0:09:57]} 10. h4 {[%emt 0:00:17]} Nc5 {[%emt 0:04:15]} 11. h5 {[%emt 0:00:24]} a4 {[%emt 0:08:21]} 12. Qd2 {[%emt 0:06:20]} Bd7 {[%emt 0:07:55]} 13. f3 {[%emt 0:16:06]} f5 {[%emt 0:09:32]} 14. exf5 {[%emt 0:11:24]} Bxf5 {[%emt 0:00:33]} 15. Nh3 {[%emt 0:06:42]} a3 {[%emt 0:09:17]} 16. b4 {[%emt 0:13:55]} Na4 {[%emt 0:03:34]} 17. Nb5 {[%emt 0:06:58]} c6 {[%emt 0:16:57]} 18. Nxa3 {[%emt 0:07:01]} e4 {[%emt 0:00:09]} 19. Bd4 {[%emt 0:00:36]} Nb6 {[%emt 0:01:42]} 20. Bxg7 {[%emt 0:05:09]} Nxg7 {[%emt 0:00:19]} 21. h6 {[%emt 0:01:49]} Nh5 {[%emt 0:11:49]} 22. Qc3 {[%emt 0:07:40]} exf3 {[%emt 0:02:51]} 23. Qxf3 {[%emt 0:02:06]} Qe7 {[%emt 0:01:49]} 24. Qc3 {[%emt 0:07:46]} Bg4 {[%emt 0:05:39]} 25. Ng1 {[%emt 0:00:18]} Nf4 {[%emt 0:02:01]} 26. Qg7+ {[%emt 0:01:22]} Qxg7 {[%emt 0:00:06]} 27. hxg7 {[%emt 0:00:01]} Rfe8 {[%emt 0:00:05]} 28. O-O-O {[%emt 0:01:09]} Nxe2+ {[%emt 0:01:02]} 29. Nxe2 {[%emt 0:00:11]} Rxa3 {[%emt 0:00:10]} 30. dxc6 {[%emt 0:00:25]} bxc6 {[%emt 0:00:13]} 31. Rxd6 {[%emt 0:00:19]} Bxe2 {[%emt 0:00:13]} 32. Re1 {[%emt 0:01:20]} Nxc4 {[%emt 0:00:46]} 33. Rxc6 {[%emt 0:00:07]} Rc3+ {[%emt 0:00:03] Rd1} 0-1

[Event "69th RUS-ch Women Higher League 2019"]
[Site "Yaroslavl"]
[Date "2019.07.06"]
[Round "9.24"]
[White "Dzutseva, Lana"]
[Black "Schepetkova, Margarita"]
[Result "1/2-1/2"]
[ECO "A58"]
[WhiteElo "1325"]
[BlackElo "2241"]
[Annotator "NA"]
[PlyCount "96"]
[EventDate "2019.06.27"]
[EventType "swiss"]
[EventCountry "RUS"]
[SourceTitle "playchess.com"]
[Source "ChessBase"]
[SourceQuality "1"]
[TimeControl "40/5400+30:1800+30"]

1. d4 {[%emt 0:00:00]} Nf6 {[%emt 0:00:00]} 2. c4 {[%emt 0:00:00]} c5 {[%emt 0:00:00]} 3. d5 {[%emt 0:00:00]} b5 {[%emt 0:00:00]} 4. cxb5 {[%emt 0:00:00]} a6 {[%emt 0:00:00]} 5. bxa6 {[%emt 0:00:00]} g6 {[%emt 0:00:00]} 6. Nc3 {[%emt 0:00:00]} Bg7 {[%emt 0:00:04]} 7. e4 {[%emt 0:00:00]} O-O {[%emt 0:00:22]} 8. Bd3 {[%emt 0:05:27]} Bxa6 {[%emt 0:09:50]} 9. Nf3 {[%emt 0:01:35]} d6 {[%emt 0:01:03]} 10. O-O {[%emt 0:01:04]} Nbd7 {[%emt 0:00:03]} 11. Rb1 {[%emt 0:10:29]} Qa5 {[%emt 0:11:13]} 12. Qc2 {[%emt 0:24:37]} Ne8 {[%emt 0:02:41]} 13. a3 {[%emt 0:05:14]} Bxd3 {[%emt 0:08:19]} 14. Qxd3 {[%emt 0:00:14]} Rb8 {[%emt 0:01:49]} 15. Bd2 {[%emt 0:10:58]} Ne5 {[%emt 0:06:56]} 16. Nxe5 {[%emt 0:03:48]} Bxe5 {[%emt 0:00:03]} 17. f4 {[%emt 0:05:25]} Bd4+ {[%emt 0:00:04]} 18. Be3 {[%emt 0:01:43]} Bg7 {[%emt 0:00:14]} 19. Qc4 {[%emt 0:10:23]} Nf6 {[%emt 0:01:38]} 20. h3 {[%emt 0:04:38]} Nd7 {[%emt 0:00:41]} 21. Kh1 {[%emt 0:05:25]} Nb6 {[%emt 0:01:58]} 22. Qd3 {[%emt 0:00:27]} Na4 {[%emt 0:02:04]} 23. Nxa4 {[%emt 0:00:47]} Qxa4 {[%emt 0:00:02]} 24. Rf2 {[%emt 0:01:24]} Rb3 {[%emt 0:00:19]} 25. Qc2 {[%emt 0:00:51]} Rfb8 {[%emt 0:00:48]} 26. Bc1 {[%emt 0:02:34]} Bd4 {[%emt 0:00:30]} 27. Rf3 {[%emt 0:00:17]} c4 {[%emt 0:00:37]} 28. Bd2 {[%emt 0:05:18]} Qa6 {[%emt 0:01:37]} 29. Rxb3 {[%emt 0:00:25]} Rxb3 {[%emt 0:00:06]} 30. Bb4 {[%emt 0:00:41]} Be3 {[%emt 0:06:38]} 31. g3 {[%emt 0:01:00]} Qc8 {[%emt 0:01:16]} 32. Kg2 {[%emt 0:00:25]} Bxf4 {[%emt 0:00:25]} 33. Bc3 {[%emt 0:00:35]} Be5 {[%emt 0:01:50]} 34. Bxe5 {[%emt 0:00:11]} dxe5 {[%emt 0:00:04]} 35. Rc1 {[%emt 0:00:27]} Qa6 {[%emt 0:01:09]} 36. Qe2 {[%emt 0:00:36]} Qb5 {[%emt 0:01:17]} 37. Rc2 {[%emt 0:00:11]} Rd3 {[%emt 0:00:20]} 38. Rd2 {[%emt 0:01:08]} Qb3 {[%emt 0:01:48]} 39. Qf2 {[%emt 0:00:32]} f5 {[%emt 0:05:57]} 40. exf5 {[%emt 0:00:00]} gxf5 {[%emt 0:00:00]} 41. Re2 {[%emt 0:13:16]} e4 {[%emt 0:10:30]} 42. Qxf5 {[%emt 0:04:25]} Rxg3+ {[%emt 0:00:05]} 43. Kh2 {[%emt 0:00:17]} Rg6 {[%emt 0:00:05]} 44. Qf2 {[%emt 0:11:19]} Qb8+ {[%emt 0:01:30]} 45. Kh1 {[%emt 0:00:14]} Qe5 {[%emt 0:00:09]} 46. Qe3 {[%emt 0:03:01]} Rg3 {[%emt 0:03:01]} 47. Qxe4 {[%emt 0:00:39]} Rxh3+ {[%emt 0:00:59]} 48. Kg1 {[%emt 0:00:37]} Qxe4 {[%emt 0:07:57]} 1/2-1/2